[Event "Charlotte Spring IM-C 2023"]
[Site "Charlotte"]
[Date "2023.03.18"]
[Round "5.5"]
[White "Yu, Jiangwei"]
[Black "Petenyi, Tamas"]
[Result "1-0"]
[ECO "E90"]
[WhiteElo "2167"]
[BlackElo "2325"]
[Annotator "TA"]
[PlyCount "99"]
[EventDate "2023.03.14"]
[EventType "tourn"]
[EventCountry "USA"]
[SourceTitle "playchess.com"]
[Source "ChessBase"]
[SourceQuality "1"]
[TimeControl "5400+30"]

{[%evp 15,99,59,59,52,81,76,93,89,84,79,89,70,95,56,81,70,94,77,79,63,63,42,56,42,56,50,56,42,42,42,57,56,56,29,61,60,89,83,77,44,108,73,94,68,73,79,87,76,127,91,170,43,64,62,65,50,94,100,377,371,375,358,956,950,911,885,1085,920,843,893,920,842,907,890,973,883,1183,1176,1062,1058,1186,1095,3029,3044,3004,2727]} 1. d4 {[%emt 0:04:23]} Nf6 {[%emt 1:31:00]} 2. c4 {[%emt 0:00:03]} g6 {[%emt 0:00:00]} 3. Nc3 {[%emt 0:00:28]} Bg7 {[%emt 0:00:00]} 4. e4 {[%emt 0:00:08]} d6 {[%emt 0:00:00]} 5. h3 {[%emt 0:00:12]} O-O {[%emt 0:00:00]} 6. Be3 {[%emt 0:00:09]} b6 {[%emt 0:00:00]} 7. Nf3 {[%emt 0:13:16]} Bb7 {[%emt 0:00:00]} 8. Bd3 {[%emt 0:07:55]} Nbd7 {[%emt 0:03:30]} 9. O-O {[%emt 0:01:28] E90: King's Indian: Classical: Early deviations and 6 h3.} c5 {[%emt 0:00:00]} 10. d5 {[%emt 0:00:34]} Ne5 {[%emt 0:01:00]} 11. Nxe5 {[%emt 0:01:07] White is better.} dxe5 {[%emt 0:00:00] [#]} 12. Qd2 $146 {[%emt 0:05:02]} ({Predecessor:} 12. f4 exf4 13. Bxf4 Nh5 14. Bh2 e6 15. Rb1 Qg5 16. Qf3 Bd4+ 17. Kh1 Be5 {½-½ Kalanyos,F (2013)-Miovecz,J HUN-chT2 Asztalos 0405 2004 (10)}) 12... e6 {[%emt 0:00:00]} 13. Rae1 {[%emt 0:10:51]} exd5 {[%emt 0:00:00]} 14. cxd5 {[%emt 0:04:00]} Qe7 {[%emt 0:00:00]} 15. Bg5 {[%emt 0:05:41]} a6 {[%emt 0:00:00]} 16. a4 {[%emt 0:01:00]} Qc7 {[%emt 0:00:00]} 17. Bc4 {[%emt 0:02:54]} Ne8 {[%emt 0:03:30]} 18. Bh6 {[%emt 0:02:44] White is more active.} Nd6 {[%emt 0:00:00]} 19. b3 {[%emt 0:00:22]} f6 {[%emt 0:00:00]} 20. Bxg7 {[%emt 0:03:18]} Kxg7 {[%emt 0:00:00]} 21. Qe2 {[%emt 0:07:59]} Rfe8 {[%emt 0:00:00]} 22. Qe3 {[%emt 0:02:55]} Bc8 {[%emt 0:00:00]} 23. Bd3 {[%emt 0:06:56]} Bd7 {[%emt 0:00:00]} 24. Qe2 {[%emt 0:02:25]} (24. f4 {looks sharper.} c4 25. bxc4 Nxc4 26. Bxc4 Qxc4 27. fxe5 fxe5 28. d6) 24... Qb7 {[%emt 0:00:00]} 25. f4 {[%emt 0:01:23]} exf4 {[%emt 0:00:00]} 26. Rxf4 {[%emt 0:00:34]} Re5 {[%emt 0:00:00]} 27. Ref1 {[%emt 0:01:38]} (27. Qf2 $5 {[%cal Rf4f6]} Rf8 28. Rf1 $16) 27... Rf8 {[%emt 0:00:00]} ({Black should try} 27... f5 $1 $14) 28. Bxa6 {[%emt 0:00:33]} Qc7 {[%emt 0:00:25]} 29. Bc4 {[%emt 0:01:38]} Qd8 {[%emt 0:01:41]} 30. Bd3 {[%emt 0:04:58]} Qe7 {[%emt 0:00:10]} 31. Qb2 {[%emt 0:02:26]} Kg8 {[%emt 0:00:31]} ({Better is} 31... Rg5) 32. R4f2 {[%emt 0:01:36]} g5 {[%emt 0:00:49] [#]} (32... Rg5 $16 {might work better.}) 33. g4 {[%emt 0:02:25]} (33. b4 $1 $18) 33... h5 {[%emt 0:00:09]} 34. Qe2 {[%emt 0:00:18]} ({But not} 34. gxh5 $6 Bxh3 35. Rd1 Qd7 $11) 34... hxg4 {[%emt 0:00:45]} 35. hxg4 {[%emt 0:00:04]} Kg7 {[%emt 0:01:35]} 36. Qf3 $36 {[%emt 0:00:55][%mdl 2048] Black is under strong pressure.} Qe8 $2 {[%emt 0:00:31][%mdl 8192] This move loses the game for Black.} (36... Bc8 $16 37. Rh2 Qd7) 37. Rh2 $18 {[%emt 0:01:07] Black must now prevent Kg2.} Qg6 {[%emt 0:00:18]} 38. Kg2 {[%emt 0:00:59] Threatens to win with Rfh1.} Kf7 $2 {[%emt 0:03:36] [#]} (38... Nf7 39. Rfh1 Rh8 40. Rxh8 {[%mdl 64] Remove Defender} Nxh8) 39. Rh7+ $3 {[%emt 0:01:17][%mdl 576] Deflection, Back Rank. White is clearly winning.} Ke8 {[%emt 0:00:00]} 40. Rfh1 {[%emt 0:00:07]} Rf7 {[%emt 0:01:00]} 41. R1h6 {[%emt 0:01:08]} Qxh7 {[%emt 0:00:00]} 42. Rxh7 {[%emt 0:00:02]} Rxh7 {[%emt 0:00:00]} 43. Qxf6 {[%emt 0:00:07]} Nf7 {[%emt 0:01:30] Against Qxe5+} 44. Qxb6 {[%emt 0:00:25]} Rh4 {[%emt 0:00:00]} 45. a5 {[%emt 0:00:49][%cal Ba4a5,Ba5a6][%mdl 32]} Rxg4+ {[%emt 0:00:00]} 46. Kf2 {[%emt 0:00:20]} Rf4+ {[%emt 0:00:00]} 47. Ke3 {[%emt 0:00:10]} Ke7 {[%emt 0:02:00]} 48. Qxc5+ {[%emt 0:01:20]} Nd6 {[%emt 0:00:00]} 49. a6 {[%emt 0:00:39] Hoping for a7.} Rf8 {[%emt 0:00:00]} 50. Kd4 {[%emt 0:00:21][%mdl 64] Trapped Piece. An entertaining game by Yu.   Weighted Error Value: White=0.17 (very precise) /Black=0.36} 1-0

[Event "Charlotte Spring IM-C 2023"]
[Site "Charlotte"]
[Date "2023.03.18"]
[Round "6.2"]
[White "Nguyen, James Le"]
[Black "Yu, Jiangwei"]
[Result "1/2-1/2"]
[ECO "B51"]
[WhiteElo "2100"]
[BlackElo "2167"]
[Annotator "TA"]
[PlyCount "97"]
[EventDate "2023.03.14"]
[EventType "tourn"]
[EventCountry "USA"]
[SourceTitle "playchess.com"]
[Source "ChessBase"]
[SourceQuality "1"]
[TimeControl "5400+30"]

{[%evp 9,97,19,20,11,34,29,51,50,59,52,106,91,108,83,103,82,93,51,75,62,90,83,108,33,66,68,73,52,70,62,72,55,63,30,15,20,18,0,0,0,22,-76,0,5,56,54,56,49,81,54,47,61,47,54,62,82,114,67,87,44,49,44,46,65,43,10,9,10,11,11,16,16,16,0,16,0,13,0,14,14,29,0,0,0,0,0,0,0,0,0]} 1. e4 {[%emt 0:00:03]} c5 {[%emt 0:02:10]} 2. Nf3 {[%emt 0:00:09]} d6 {[%emt 0:00:15]} 3. Bb5+ {[%emt 0:00:06]} Nd7 {[%emt 0:00:07]} 4. c3 {[%emt 0:01:44]} Ngf6 {[%emt 0:00:30]} 5. Bd3 {[%emt 0:00:18]} e6 {[%emt 0:12:01]} 6. O-O {[%emt 0:01:22] B51: Sicilian: Moscow Variation (3 Bb5+) without 3...Bd7.} Qc7 {[%emt 0:01:26]} 7. Re1 {[%emt 0:01:34]} b6 {[%emt 0:02:13]} 8. Bc2 {[%emt 0:01:54] White is slightly better.} c4 {[%emt 0:00:13]} 9. b3 {[%emt 0:02:39] [#]} cxb3 $146 {[%emt 0:01:12]} (9... Ne5 $14) ({Predecessor:} 9... b5 10. d4 cxd3 11. Bxd3 a6 12. Bb2 Bb7 13. Nbd2 Nc5 14. Bc2 e5 15. Rc1 Be7 {0-1 Tissot,A-Piquemal,C (2047) FRA-chT2 0304a 2003 (10.9)}) 10. axb3 $16 {[%emt 0:00:14]} Bb7 {[%emt 0:00:56]} 11. c4 {[%emt 0:06:35]} Be7 {[%emt 0:02:35]} 12. Nc3 {[%emt 0:01:55]} a6 {[%emt 0:01:06]} 13. Bb2 {[%emt 0:01:30]} O-O {[%emt 0:04:23][%cal Ob6b5]} 14. d4 {[%emt 0:00:54]} Rfd8 {[%emt 0:01:25]} 15. Qe2 {[%emt 0:02:09]} Nf8 {[%emt 0:01:36]} 16. e5 {[%emt 0:15:36]} (16. Bd3 $16) 16... Ne8 {[%emt 0:01:54]} 17. Rac1 {[%emt 0:05:42] White is much more active.} (17. Ne4 {with more complications.} dxe5 18. Nxe5 Bb4 19. Ng5) 17... dxe5 {[%emt 0:08:51]} 18. Nxe5 {[%emt 0:05:23]} (18. Qxe5 Bxf3 19. Qxc7 (19. gxf3 Bd6 $11) 19... Nxc7 $11) 18... Bg5 {[%emt 0:09:08]} 19. Rcd1 {[%emt 0:00:45]} Ng6 {[%emt 0:06:43]} 20. Qg4 {[%emt 0:12:16] aiming for Nxg6.} Bh6 {[%emt 0:03:00]} 21. Nxg6 {[%emt 0:04:24]} hxg6 {[%emt 0:00:16]} 22. Qe2 {[%emt 0:05:24]} Nf6 {[%emt 0:05:00]} 23. h3 {[%emt 0:04:02]} Rac8 {[%emt 0:08:15]} 24. Ne4 {[%emt 0:08:07]} Nh5 {[%emt 0:04:17]} 25. Qf1 {[%emt 0:00:35] [#]} (25. g3 $11 {keeps the balance.}) 25... Bf4 {[%emt 0:03:58]} ({Black should play} 25... f5 $1 $17 26. Nc3 Bg5) 26. g3 $11 {[%emt 0:02:45]} f5 {[%emt 0:07:36]} (26... Bxg3 $11 27. fxg3 f5) 27. gxf4 $14 {[%emt 0:00:14]} fxe4 {[%emt 0:00:27]} 28. Bxe4 {[%emt 0:00:48]} Rf8 {[%emt 0:01:33]} 29. Bc1 {[%emt 0:02:27] Bxb7 is the strong threat. This pair of bishops is nice.} (29. Bxb7 {keeps more tension.} Qxb7 30. Rxe6 Nxf4 31. Re3) 29... Nxf4 {[%emt 0:00:33]} 30. Bxf4 {[%emt 0:01:01]} Rxf4 {[%emt 0:00:05]} 31. Bxb7 {[%emt 0:00:08]} (31. Bxg6 Qc6 32. d5 exd5 $17) 31... Qxb7 {[%emt 0:00:06]} 32. Rxe6 {[%emt 0:01:26]} Rcf8 {[%emt 0:03:54] White must now prevent ...Rxf2.} 33. Re3 {[%emt 0:02:17]} (33. Rxg6 $2 {perishes.} Rxf2 34. Qe1 (34. Qxf2 $2 Rxf2 35. Kxf2 Qf7+ 36. Ke2 Qxg6 $19) 34... Qf3 $19) (33. d5 $16) 33... b5 {[%emt 0:01:54]} 34. Rd2 {[%emt 0:02:09]} bxc4 $1 {[%emt 0:01:49]} 35. bxc4 {[%emt 0:01:33]} Qb4 {[%emt 0:01:28]} 36. Qd3 {[%emt 0:00:52]} Rd8 {[%emt 0:01:05]} 37. Rg3 {[%emt 0:03:20][%cal Od3g6] Hoping for Qxg6!} (37. Rde2 {is interesting.} Rdxd4 38. Qxg6 Rd1+ 39. Kg2) 37... Rfxd4 {[%emt 0:02:21] [#]} 38. Qxg6 {[%emt 0:00:56][%csl Gg3][%cal Rg6g7][%mdl 64] Double Attack} Qb7 {[%emt 0:01:06]} 39. Rxd4 {[%emt 0:00:40]} Rxd4 $11 {[%emt 0:00:02][%mdl 4096] Endgame KQR-KQR} 40. Qe8+ {[%emt 0:00:05]} Kh7 {[%emt 0:00:02] ( -> ...Rd1+)} 41. Qh5+ {[%emt 0:00:27]} Kg8 {[%emt 0:00:01]} 42. Re3 {[%emt 0:01:31][%cal Re3e8]} ({Don't take} 42. Qe8+ $6 Kh7 43. Qh5+ Kg8 $16) (42. c5 {feels hotter.} Qf7 43. Qe5 Rd1+ 44. Kg2) 42... Re4 {[%emt 0:01:28]} 43. Qc5 {[%emt 0:01:48]} Qb1+ {[%emt 0:01:10]} 44. Kg2 {[%emt 0:00:25] Qd5+ would kill now.} Rxe3 {[%emt 0:00:44]} 45. Qxe3 {[%emt 0:00:07] Threatens to win with Qe8+.} ({Don't do} 45. fxe3 Qd1 $16) 45... Qg6+ {[%emt 0:00:07] The position is equal.} 46. Kh2 {[%emt 0:00:15]} a5 {[%emt 0:00:35]} 47. Qd2 {[%emt 0:01:25]} a4 {[%emt 0:00:25]} 48. Qd8+ {[%emt 0:00:43]} Kh7 {[%emt 0:00:01]} 49. Qh4+ {[%emt 0:00:05] Weighted Error Value: White=0.17 (very precise) /Black=0.14 (very precise)} 1/2-1/2

[Event "Charlotte Spring IM-C 2023"]
[Site "Charlotte"]
[Date "2023.03.18"]
[Round "6.3"]
[White "Jayaraman, Roshan"]
[Black "Amburgy, Ryan"]
[Result "1/2-1/2"]
[ECO "E49"]
[WhiteElo "1907"]
[BlackElo "2242"]
[Annotator "TA"]
[PlyCount "53"]
[EventDate "2023.03.14"]
[EventType "tourn"]
[EventCountry "USA"]
[SourceTitle "playchess.com"]
[Source "ChessBase"]
[SourceQuality "1"]
[TimeControl "5400+30"]

{[%evp 20,53,9,-8,-8,-8,-25,-20,-23,-23,-29,-31,-10,-36,-25,-74,12,12,11,9,6,9,59,68,67,38,45,31,38,39,33,31,31,31,33,31]} 1. d4 {[%emt 0:10:41]} Nf6 {[%emt 1:31:00]} 2. c4 {[%emt 0:00:12]} e6 {[%emt 0:00:00]} 3. Nc3 {[%emt 0:00:15]} Bb4 {[%emt 0:00:00]} 4. e3 {[%emt 0:00:10]} O-O {[%emt 0:00:00]} 5. Bd3 {[%emt 0:00:06]} d5 {[%emt 0:00:00]} 6. a3 {[%emt 0:00:09]} Bxc3+ {[%emt 0:00:00]} 7. bxc3 {[%emt 0:00:07]} dxc4 {[%emt 0:00:00]} 8. Bxc4 {[%emt 0:00:11]} c5 {[%emt 0:00:00]} 9. Ne2 {[%emt 0:01:12]} Qc7 {[%emt 0:00:00]} 10. Bd3 {[%emt 0:01:08]} e5 {[%emt 0:00:00] 10...b6 is a critical line.} 11. O-O {[%emt 0:01:51]} Nc6 {[%emt 0:00:00] E49: Nimzo-Indian: Rubinstein: 5 Bd3 d5 6 a3 Bxc3+ 7 bxc3.} 12. Ng3 {[%emt 0:01:52]} Be6 {[%emt 0:00:00]} 13. f4 {[%emt 0:01:14]} exd4 {[%emt 0:00:00] The position is equal.} 14. cxd4 {[%emt 0:00:11]} Rad8 {[%emt 0:00:00]} 15. Rb1 {[%emt 0:03:24]} a6 {[%emt 0:00:00]} 16. h3 {[%emt 0:01:58]} b5 {[%emt 0:00:00] [#]} 17. Kh1 $146 {[%emt 0:03:45]} (17. Bb2 $11) ({Predecessor:} 17. Bb2 cxd4 18. Rc1 Qb6 19. e4 Bc4 20. Kh2 Rfe8 21. Qf3 Nd7 22. Nf5 g6 23. Nh6+ {1-0 Sarana,A (2668)-Vidit,S (2714) Chess.com Rapid Wk21 Swiss 2022 (9)}) 17... Bc4 {[%emt 0:00:00]} (17... c4 $17 18. Bc2 c3) 18. Bxc4 $11 {[%emt 0:05:45]} bxc4 {[%emt 0:00:00]} 19. Qc2 {[%emt 0:00:40]} cxd4 {[%emt 0:00:00] [#] Hoping for ...c3.} 20. Qxc4 {[%emt 0:00:43]} Qd7 {[%emt 0:00:00]} (20... dxe3 $11 21. Bxe3 Nd5) 21. e4 $14 {[%emt 0:05:09][%cal Be3e4,Be4e5,Be5f6][%mdl 32] White is slightly better.} d3 {[%emt 0:00:00]} 22. Bd2 {[%emt 0:11:05]} Nd4 {[%emt 0:00:00][%cal Od4e2]} 23. e5 {[%emt 0:11:02]} (23. Qxa6 $2 {loses.} Ne2 24. Nxe2 dxe2 25. Qxe2 Qxd2 26. Qxd2 Rxd2 $19) (23. Qxd3 $2 {is the wrong capture.} Nf5 24. Qxd7 Nxg3+ 25. Kg1 Rxd7 $19) 23... Ne2 $1 {[%emt 0:00:00]} 24. Nxe2 {[%emt 0:02:44]} dxe2 {[%emt 0:00:00]} 25. Qxe2 {[%emt 0:00:10] [#] Black must now prevent Ba5.} Qxd2 {[%emt 0:00:00]} 26. Qxd2 {[%emt 0:00:12]} Rxd2 {[%emt 0:00:00]} 27. exf6 {[%emt 0:00:20] Weighted Error Value: White=0.10 (very precise) /Black=0.14 (very precise)} 1/2-1/2

[Event "Charlotte Spring IM-C 2023"]
[Site "Charlotte"]
[Date "2023.03.18"]
[Round "6.4"]
[White "Sriniaiyer, Sudarshan"]
[Black "Georgiev, Vladimir"]
[Result "0-1"]
[ECO "E61"]
[WhiteElo "2186"]
[BlackElo "2404"]
[Annotator "TA"]
[PlyCount "96"]
[EventDate "2023.03.14"]
[EventType "tourn"]
[EventCountry "USA"]
[SourceTitle "playchess.com"]
[Source "ChessBase"]
[SourceQuality "1"]
[TimeControl "5400+30"]

{[%evp 10,96,40,30,32,31,32,30,35,22,36,18,13,13,24,4,74,50,38,39,59,57,56,54,108,103,99,74,81,78,75,81,81,57,82,59,171,171,169,168,154,155,144,24,24,24,25,29,34,23,90,0,0,0,0,0,0,0,0,0,0,-88,-89,-90,-74,-150,-145,-149,-151,-151,-146,-130,-106,-167,-187,-170,-146,-402,-372,-512,-462,-749,-739,-710,-708,-958,-839,-744,-604]} 1. d4 {[%emt 0:02:00] ChessBase II} d6 {[%emt 0:00:59]} 2. Nf3 {[%emt 0:02:53]} Nf6 {[%emt 0:00:44]} 3. c4 {[%emt 0:00:52]} g6 {[%emt 0:00:12]} 4. Nc3 {[%emt 0:00:12]} Bf5 {[%emt 0:00:23]} 5. Nh4 {[%emt 0:08:20]} Bd7 {[%emt 0:01:53]} 6. e4 {[%emt 0:03:06]} Bg7 {[%emt 0:01:48] E61: King's Indian: Early deviations for White, including Smyslov System.} 7. Nf3 {[%emt 0:03:18]} O-O {[%emt 0:02:54]} 8. Be2 {[%emt 0:01:00]} e5 {[%emt 0:02:55] White has an edge.} 9. Be3 {[%emt 0:01:11] [#]} Qe8 $146 {[%emt 0:05:49]} ({Predecessor:} 9... Ng4 10. Bg5 f6 11. Bh4 Nc6 12. d5 Ne7 13. Nd2 Nh6 14. f3 c5 15. dxc6 bxc6 {½-½ Wagner,D (2567)-Oratovsky,M (2456) FRA-chT Top 12 2018 (1)}) 10. O-O {[%emt 0:21:08]} Ng4 {[%emt 0:01:29]} 11. Bc1 {[%emt 0:02:57]} Na6 {[%emt 0:06:06]} (11... exd4 {with more complications.} 12. Nxd4 Qe5 13. Nf3 Qe8) 12. dxe5 {[%emt 0:07:57]} dxe5 {[%emt 0:02:59]} (12... Nxe5 $11 13. Be3 Nc6) 13. h3 {[%emt 0:01:45]} Nf6 {[%emt 0:00:14]} 14. Be3 {[%emt 0:00:05] Prevents Nc5.} Rd8 {[%emt 0:06:20][%cal Od7h3]} 15. Qb1 {[%emt 0:06:43]} c5 {[%emt 0:13:19]} 16. Nd5 {[%emt 0:03:31]} Bc8 {[%emt 0:04:14]} (16... Nh5 $14) 17. a3 {[%emt 0:03:54]} Nh5 {[%emt 0:02:42]} 18. Rd1 {[%emt 0:02:11]} b6 {[%emt 0:05:40]} 19. Ra2 {[%emt 0:04:17]} f5 {[%emt 0:02:18]} 20. Bg5 {[%emt 0:02:35]} Rd7 {[%emt 0:02:34] Wards off Ne7+} 21. exf5 {[%emt 0:02:58]} gxf5 {[%emt 0:00:47]} 22. Nh4 {[%emt 0:03:51]} Nf4 {[%emt 0:04:10]} 23. Nxf4 $18 {[%emt 0:03:46]} (23. Bxf4 exf4 24. Bf3 (24. Nxf4 $2 Bh6 $19) 24... Nc7 $16) 23... exf4 {[%emt 0:00:05]} 24. b3 {[%emt 0:01:15]} Nc7 {[%emt 0:01:38]} 25. Bf3 {[%emt 0:01:17]} (25. Nxf5 $2 {too greedy.} Rxf5 26. Bh4 Re5 $19) ({Don't do} 25. Bxf4 $6 Ne6 26. Bd6 Rxd6 27. Rxd6 Qe7 $16) 25... Bf6 {[%emt 0:07:01]} 26. Re2 {[%emt 0:03:07]} (26. Qxf5 $2 {perishes.} Rxd1+ 27. Bxd1 Bxf5 $19) (26. Bxf6 $16 Rxf6 27. Re2 (27. Nxf5 $2 Rxd1+ 28. Qxd1 Bxf5 $19)) 26... Qd8 $11 {[%emt 0:00:49]} 27. Rxd7 {[%emt 0:01:01]} Bxd7 {[%emt 0:00:12]} 28. Bxf6 {[%emt 0:00:24]} Qxf6 {[%emt 0:00:19]} 29. Qd1 {[%emt 0:01:23]} Rf7 {[%emt 0:02:53] [#]} (29... Be8 $1 $11) 30. Rd2 {[%emt 0:02:15]} (30. Bh5 $1 $16 {[%cal Rh5f7]} Re7 31. Rxe7 Qxe7 32. Bf3) 30... Be6 {[%emt 0:02:55]} 31. Bh5 {[%emt 0:02:03]} Qxh4 {[%emt 0:00:48]} 32. Bxf7+ {[%emt 0:00:03]} Kxf7 {[%emt 0:00:58]} (32... Bxf7 {keeps more tension.} 33. Rd7 Ne6 34. Qd6 f3) 33. Qf3 {[%emt 0:00:07]} Ne8 {[%emt 0:00:34]} 34. Re2 {[%emt 0:00:48]} Ng7 {[%emt 0:02:40]} 35. Qc6 {[%emt 0:01:40]} (35. Rd2 $11 {keeps the balance.}) 35... Qd8 $17 {[%emt 0:00:27] Strongly threatening ...Qd1+.} 36. Qf3 {[%emt 0:00:54]} Kg6 {[%emt 0:01:57]} (36... Kf6 {feels hotter.} 37. Kh2 Qd6 38. Qc3+ Qd4) 37. Kh2 {[%emt 0:00:04]} (37. Re1 $142) 37... Qd6 {[%emt 0:00:31]} 38. Re1 {[%emt 0:00:29]} Bf7 {[%emt 0:00:48]} 39. Rd1 {[%emt 0:00:37]} Qc7 {[%emt 0:00:24]} 40. Qd3 {[%emt 0:00:30]} Ne6 {[%emt 0:01:06]} 41. Qd6 {[%emt 0:00:10] [#] Wards off} (41. Qd7 $17 {is a better defense.} Qe5 42. f3) 41... Qxd6 $1 $19 {[%emt 0:01:06]} 42. Rxd6 {[%emt 0:00:01]} Kf6 {[%emt 0:00:10] White must now prevent ...Ke7.} 43. Rd7 $2 {[%emt 0:01:38][%mdl 8192]} (43. b4 $17) 43... Nd4 {[%emt 0:14:10]} 44. Rxa7 {[%emt 0:00:37]} Nxb3 {[%emt 0:00:00] Black is clearly winning.} 45. Rb7 {[%emt 0:00:15]} (45. f3 $142 Nd2 46. a4) 45... Bxc4 {[%emt 0:00:00]} 46. Rxb6+ {[%emt 0:00:01]} Ke5 {[%emt 0:00:00] Threatens to win with ...Bd5.} 47. a4 {[%emt 0:00:44]} Bd5 {[%emt 0:00:00] ...c4 is the strong threat.} 48. Rb5 {[%emt 0:00:20]} Kd4 {[%emt 0:00:00] What a bad dream for White.   Weighted Error Value: White=0.41/Black=0.10 (very precise)} 0-1